bitfinex-derivatives/quotes_BTCF0:USTF0_20240905
["timestamp","ask_amount","ask_price","bid_price","bid_amount"]
[1725514476622,0.00226181,57279.0,57278.0,0.779368]
[1725514476814,0.05585041,57279.0,57278.0,0.782368]
[1725514477017,0.05385041,57279.0,57278.0,1.744168]
[1725514477215,0.05385041,57279.0,57278.0,1.7760012]
[1725514477827,0.05585041,57279.0,57278.0,1.7750012]
[1725514478622,0.05385041,57279.0,57278.0,1.7750012]
[1725514478821,0.05385041,57279.0,57278.0,1.7720012]
[1725514479018,0.05485041,57279.0,57278.0,1.7720012]
[1725514480216,0.05685041,57279.0,57278.0,1.7720012]
[1725514481329,0.05684929,57279.0,57278.0,1.7720012]
[1725514483323,0.05684929,57279.0,57278.0,0.4537412]
[1725514483520,0.05684929,57279.0,57278.0,0.5537412]
[1725514484928,0.05684929,57279.0,57278.0,0.4537412]
[1725514485128,0.05684929,57279.0,57278.0,0.5537412]
[1725514494435,0.11948346,57279.0,57278.0,0.5537412]
[1725514494936,0.34608978,57279.0,57278.0,0.5537412]
[1725514495538,0.2834577,57279.0,57278.0,0.5537412]
[1725514495741,0.05685138,57279.0,57278.0,0.5537412]
[1725514495934,0.05685138,57279.0,57278.0,0.1929412]
[1725514496135,0.05685138,57279.0,57278.0,0.5537412]
[1725514499636,0.05685138,57279.0,57278.0,0.1929412]
[1725514500142,0.05685138,57279.0,57278.0,0.5537412]
[1725514501044,0.05685108,57279.0,57278.0,0.1929412]
[1725514501244,0.05685108,57279.0,57278.0,0.5537412]
[1725514501741,0.05685108,57279.0,57278.0,0.6148492]
[1725514501742,0.05585108,57279.0,57278.0,0.6148492]
[1725514501942,0.06263208,57291.0,57290.0,0.061095]
[1725514502148,0.06263208,57291.0,57290.0,0.161095]
[1725514502149,0.11621847,57291.0,57290.0,0.161095]
[1725514503337,0.12421847,57291.0,57290.0,0.162095]
[1725514503547,0.06158639,57291.0,57290.0,0.162095]
[1725514504447,0.06958639,57291.0,57290.0,0.163095]
[1725514507746,0.06958639,57291.0,57290.0,0.19396216]
[1725514508948,0.06958639,57291.0,57290.0,0.55476216]
[1725514510645,0.13221847,57291.0,57290.0,0.55476216]
[1725514516159,0.13221847,57291.0,57290.0,0.45476216]
[1725514516460,0.13221847,57291.0,57290.0,0.55476216]
[1725514516757,0.06958639,57291.0,57290.0,0.55476216]
[1725514517453,0.06958639,57291.0,57290.0,0.45476216]
[1725514517750,0.76336608,57291.0,57290.0,0.03286716]
[1725514519865,0.23972608,57291.0,57290.0,0.03286716]
[1725514520161,0.177094,57291.0,57290.0,0.03286716]
[1725514520760,1.300734,57291.0,57290.0,0.03286716]
[1725514520965,1.36336608,57291.0,57290.0,0.03286716]
[1725514524167,1.42446008,57291.0,57290.0,0.002]
[1725514524553,0.82446008,57291.0,57290.0,0.002]
[1725514525259,0.0611,57286.0,57285.0,0.00026181]
[1725514525577,0.583,57286.0,57285.0,0.00026181]
[1725514525751,1.76931208,57286.0,57285.0,0.00026181]
[1725514526566,1.78031208,57286.0,57285.0,0.00126181]
[1725514528855,1.78031208,57286.0,57285.0,0.00226181]
[1725514528856,1.78431208,57286.0,57285.0,0.00226181]
[1725514529257,1.78731208,57286.0,57285.0,0.00226181]
[1725514529765,1.42651208,57286.0,57285.0,0.00226181]
[1725514529951,2.14811208,57286.0,57285.0,0.00226181]
[1725514530154,2.21977053,57286.0,57285.0,0.00226181]
[1725514531360,1.49817053,57286.0,57285.0,0.00226181]
[1725514531564,2.14811208,57286.0,57285.0,0.00226181]
[1725514531764,2.21977053,57286.0,57285.0,0.00226181]
[1725514532865,1.49817053,57286.0,57285.0,0.00226181]
[1725514533168,2.14811208,57286.0,57285.0,0.00226181]
[1725514533477,2.21977053,57286.0,57285.0,0.00226181]
[1725514533662,2.14811208,57286.0,57285.0,0.00226181]
[1725514536167,0.061111,57275.0,57274.0,0.0475]
[1725514536471,0.061118,57269.0,57268.0,0.110618]
[1725514536673,0.161118,57269.0,57268.0,0.14225896]
[1725514537870,0.158118,57269.0,57268.0,0.14225896]
[1725514539172,0.154118,57269.0,57268.0,0.14225896]
[1725514539561,0.155118,57269.0,57268.0,0.15125896]
[1725514539965,0.156118,57269.0,57268.0,0.16125896]
[1725514545776,0.102,57269.0,57268.0,0.16125896]
[1725514545973,0.102,57269.0,57268.0,0.26125896]
[1725514546174,0.002,57269.0,57268.0,0.26125896]
[1725514549775,0.05559675,57269.0,57268.0,0.26125896]
[1725514550679,0.05559753,57269.0,57268.0,0.26125896]
[1725514550881,0.002,57269.0,57268.0,0.26125896]
[1725514551783,0.05559801,57269.0,57268.0,0.26125896]
[1725514552177,0.05559801,57269.0,57268.0,0.62205896]
[1725514554078,0.05559817,57269.0,57268.0,0.62205896]
[1725514554284,0.002,57269.0,57268.0,0.62205896]
[1725514558990,0.05559773,57269.0,57268.0,0.62205896]
[1725514560881,0.05559773,57269.0,57268.0,1.80701796]
[1725514561079,0.00260855,57269.0,57268.0,1.80701796]
[1725514561290,0.00026181,57274.0,57273.0,0.061113]
[1725514561597,0.00026181,57274.0,57273.0,0.521913]
[1725514562486,0.00026181,57274.0,57273.0,0.524913]
[1725514562794,0.00026181,57274.0,57273.0,0.528913]
[1725514563694,0.06289732,57274.0,57273.0,0.528913]
[1725514563901,0.06263551,57274.0,57273.0,0.528913]
[1725514567689,0.06263551,57274.0,57273.0,0.168113]
[1725514567890,0.06263551,57274.0,57273.0,0.528913]
[1725514568886,0.0249708,57274.0,57273.0,0.528913]
[1725514569593,0.1,57280.0,57273.0,0.4678]
[1725514569797,0.1,57280.0,57279.0,0.061107]
[1725514572386,0.1,57282.0,57281.0,0.061104]
[1725514573591,0.105,57282.0,57281.0,0.061104]
[1725514574884,0.11,57282.0,57281.0,0.061104]
[1725514576382,0.11,57282.0,57276.0,0.00026181]
[1725514576589,0.1,57278.0,57276.0,0.00026181]
[1725514576784,0.047,57277.0,57276.0,0.00026181]
[1725514577399,0.047,57277.0,57276.0,0.03138173]
[1725514578293,0.047,57277.0,57276.0,0.09249173]
[1725514578799,0.10962224,57277.0,57276.0,0.03138173]
[1725514579495,0.17073124,57277.0,57276.0,0.03238173]
[1725514580198,0.61153124,57277.0,57276.0,0.03238173]
[1725514580400,0.53153124,57277.0,57276.0,0.03238173]
[1725514581897,0.53153124,57277.0,57276.0,1e-08]
[1725514581898,1.65529124,57277.0,57276.0,1e-08]
[1725514582108,1.75418224,57277.0,57270.0,0.03160846]
[1725514582294,0.4608,57271.0,57264.0,0.061123]
[1725514582498,0.1,57265.0,57264.0,0.061123]
[1725514583198,0.061121,57267.0,57264.0,0.061123]
[1725514583398,0.1,57265.0,57264.0,0.061123]
[1725514583901,0.1,57265.0,57264.0,0.064123]
[1725514584302,0.061121,57267.0,57264.0,0.064123]
[1725514584497,0.1,57265.0,57264.0,0.064123]
[1725514585003,0.1,57265.0,57264.0,0.066123]
[1725514585995,0.1,57266.0,57265.0,0.061121]
[1725514586191,0.00026181,57270.0,57269.0,0.061118]
[1725514586391,0.10026181,57270.0,57269.0,0.061118]
[1725514588106,0.10426181,57270.0,57269.0,0.061118]
[1725514590005,0.10726181,57270.0,57269.0,0.061118]
[1725514592910,0.10726181,57270.0,57269.0,0.09266741]
[1725514600625,0.00726181,57270.0,57269.0,0.09266741]
[1725514601009,0.16989762,57270.0,57269.0,0.09266741]
[1725514609120,0.10726181,57270.0,57269.0,0.09266741]
[1725514615931,0.16989762,57270.0,57269.0,0.09266741]
[1725514624031,0.10726181,57270.0,57269.0,0.09266741]
[1725514627840,0.00726181,57270.0,57269.0,0.55346741]
[1725514633636,0.00726181,57270.0,57269.0,0.61458541]
[1725514633846,0.06263581,57280.0,57279.0,0.061107]
[1725514634034,0.06263581,57280.0,57279.0,0.161107]
[1725514635141,0.07663581,57280.0,57279.0,0.162107]
[1725514635939,0.07663581,57280.0,57279.0,0.163107]
[1725514636147,0.09063581,57280.0,57279.0,0.163107]
[1725514637643,0.028,57280.0,57279.0,0.163107]
[1725514639755,0.028,57280.0,57279.0,0.19412902]
[1725514644062,0.023,57280.0,57279.0,0.19312902]
[1725514644250,0.018,57280.0,57279.0,0.19412902]
[1725514645359,0.08063581,57280.0,57279.0,0.19412902]
[1725514645757,0.07163581,57280.0,57279.0,0.19312902]
[1725514645949,0.018,57280.0,57279.0,0.19412902]
[1725514646755,0.118,57280.0,57279.0,0.09412902]
[1725514648958,0.179106,57280.0,57279.0,0.03302202]
[1725514649160,0.24174181,57280.0,57279.0,0.03302202]
[1725514649967,0.179106,57280.0,57279.0,0.03302202]
[1725514653469,0.539906,57280.0,57279.0,0.03302202]
[1725514653667,0.60254181,57280.0,57279.0,0.03302202]
[1725514660471,0.50254181,57280.0,57279.0,0.03302202]
[1725514660681,0.60254181,57280.0,57279.0,0.03302202]
[1725514666773,0.24174181,57280.0,57279.0,0.03302202]
[1725514666961,0.179106,57280.0,57279.0,0.03302202]
[1725514669076,0.24174181,57280.0,57279.0,0.03302202]
[1725514669672,0.14174181,57280.0,57279.0,0.03302202]
[1725514669974,0.24174181,57280.0,57279.0,0.03302202]
[1725514672367,0.24174181,57280.0,57279.0,0.09412902]
[1725514676081,0.179106,57280.0,57279.0,0.09412902]
[1725514685977,0.079106,57280.0,57279.0,0.09412902]
[1725514687076,0.079106,57280.0,57279.0,0.03302202]
[1725514687275,0.140212,57280.0,57279.0,0.03302202]
[1725514687494,0.20284781,57280.0,57279.0,0.03302202]
[1725514687693,0.061111,57275.0,57274.0,0.00026181]
[1725514687991,0.631911,57275.0,57274.0,0.00026181]
[1725514688290,0.69454681,57275.0,57274.0,0.00026181]
[1725514688977,0.69754681,57275.0,57274.0,0.00026181]
[1725514689375,0.70054681,57275.0,57274.0,0.00026181]
[1725514703701,0.33974681,57275.0,57274.0,0.00026181]
[1725514703906,0.70054681,57275.0,57274.0,0.00026181]
[1725514705194,0.33974681,57275.0,57274.0,0.00026181]
[1725514705394,0.70054681,57275.0,57274.0,0.00026181]
[1725514706395,0.33974681,57275.0,57274.0,0.00026181]
[1725514706598,0.70054681,57275.0,57274.0,0.00026181]
[1725514707009,0.76165781,57275.0,57274.0,0.00026181]
[1725514707304,0.81526163,57275.0,57274.0,0.00026181]
[1725514714501,0.45446163,57275.0,57274.0,0.00026181]
[1725514714816,0.81526163,57275.0,57274.0,0.00026181]
[1725514715612,0.45446163,57275.0,57274.0,0.00026181]
[1725514719007,0.39335063,57275.0,57274.0,0.00026181]
[1725514720006,0.28335063,57275.0,57274.0,0.06137381]
[1725514722010,0.22071482,57275.0,57274.0,0.06137381]
[1725514724315,0.58151482,57275.0,57274.0,0.06137381]
[1725514724509,0.64415063,57275.0,57274.0,0.06137381]
[1725514724711,0.64415063,57275.0,57274.0,0.00026181]
[1725514726009,0.64414985,57275.0,57274.0,0.00026181]
[1725514728214,0.87091078,57275.0,57274.0,0.00026181]
[1725514728714,0.64414985,57275.0,57274.0,0.00026181]
[1725514729815,0.65165781,57275.0,57274.0,0.00026181]
[1725514732721,0.55165781,57275.0,57274.0,0.00026181]
[1725514732921,0.65165781,57275.0,57274.0,0.00026181]
[1725514743125,0.59054681,57275.0,57274.0,0.00026181]
[1725514746619,0.59054681,57275.0,57274.0,0.04866181]
[1725514748631,0.59054681,57275.0,57274.0,0.00026181]
[1725514752426,0.62230961,57275.0,57274.0,0.00026181]
[1725514752825,0.68342061,57275.0,57274.0,0.00026181]
[1725514753029,0.62230961,57275.0,57274.0,0.00026181]
[1725514753633,0.68342061,57275.0,57274.0,0.00026181]
[1725514754234,0.62230961,57275.0,57274.0,0.00026181]
[1725514755725,0.68342061,57275.0,57274.0,0.00026181]
[1725514755926,1.04422061,57275.0,57274.0,0.00026181]
[1725514757223,0.98310961,57275.0,57274.0,0.00026181]
[1725514757424,1.04422061,57275.0,57274.0,0.00026181]
[1725514758729,1.11588497,57275.0,57274.0,0.00026181]
[1725514761328,1.32371114,57275.0,57274.0,0.00026181]
[1725514763038,1.04422061,57275.0,57274.0,0.00026181]
[1725514763238,0.061121,57266.0,57265.0,0.0455]
[1725514763433,0.061121,57266.0,57264.0,0.0478]
[1725514763434,0.061122,57265.0,57264.0,0.0478]
[1725514763630,0.17263581,57265.0,57263.0,0.03162059]
[1725514763831,0.061124,57263.0,57262.0,0.0464]
[1725514764032,0.12375981,57263.0,57262.0,0.0464]
[1725514764842,0.11675981,57263.0,57262.0,0.0464]
[1725514765537,0.10975981,57263.0,57262.0,0.0514]
[1725514766243,0.10975981,57263.0,57262.0,0.0534]
[1725514766443,0.047124,57263.0,57262.0,0.0534]
[1725514766845,0.10975981,57263.0,57262.0,0.0534]
[1725514767038,0.047124,57263.0,57262.0,0.0534]
[1725514767434,0.047124,57263.0,57262.0,0.0484]
[1725514767629,0.047124,57263.0,57262.0,0.0494]
[1725514768034,0.047124,57263.0,57262.0,0.003]
[1725514769534,0.158248,57263.0,57262.0,0.003]
[1725514769735,0.22088381,57263.0,57262.0,0.003]
[1725514770143,0.22088381,57263.0,57257.0,0.00026181]
[1725514770144,0.061129,57258.0,57257.0,0.00026181]
[1725514770343,0.521929,57258.0,57257.0,0.00026181]
[1725514770539,0.58456481,57258.0,57257.0,0.00026181]
[1725514770946,0.64569381,57258.0,57257.0,0.00026181]
[1725514771244,0.64569381,57258.0,57251.0,1.12499]
[1725514771245,0.061136,57252.0,57251.0,1.12499]
[1725514771444,0.521936,57252.0,57251.0,1.12499]
[1725514771649,0.58457181,57252.0,57251.0,1.15637804]
[1725514772347,0.58457181,57252.0,57251.0,1.12499]
[1725514772743,0.58457181,57252.0,57251.0,1.12799]
[1725514774253,0.66276983,57252.0,57251.0,0.70799]
[1725514775551,0.66476983,57252.0,57251.0,0.70499]
[1725514775955,0.72590583,57252.0,57251.0,0.70499]
[1725514776154,0.73190583,57252.0,57251.0,0.70499]
[1725514776649,0.67076983,57252.0,57251.0,0.70499]
[1725514777249,0.061141,57247.0,57246.0,0.00026181]
[1725514777542,0.631941,57247.0,57246.0,0.00026181]
[1725514777743,0.061146,57242.0,57241.0,0.047]
[1725514778061,0.631946,57242.0,57241.0,0.047]
[1725514778358,0.061148,57241.0,57223.0,0.3608]
[1725514778549,0.3608,57233.0,57229.0,0.06116]
[1725514778949,0.3578,57233.0,57229.0,0.06116]
[1725514779158,0.418957,57233.0,57226.0,0.0471]
[1725514779758,0.418957,57233.0,57229.0,0.003]
[1725514779954,0.1,57230.0,57229.0,0.003]
[1725514781558,0.1,57230.0,57226.0,0.108263]
[1725514781853,0.099,57227.0,57226.0,0.0471]
[1725514782058,0.16168311,57227.0,57226.0,0.0471]
[1725514782754,0.16068311,57227.0,57226.0,0.0471]
[1725514782955,0.22184511,57227.0,57226.0,0.0471]
[1725514783259,0.22184511,57227.0,57226.0,0.0481]
[1725514783260,0.26384511,57227.0,57226.0,0.0481]
[1725514783646,0.26384511,57227.0,57210.0,0.1]
[1725514783647,0.78808511,57227.0,57217.0,0.03155044]
[1725514783954,0.521973,57218.0,57213.0,0.0995]
[1725514784155,0.1,57214.0,57213.0,0.0995]
[1725514784349,0.3608,57218.0,57213.0,0.0995]
[1725514784656,0.3608,57218.0,57216.0,0.1]
[1725514785251,0.3608,57218.0,57217.0,0.061173]
[1725514785451,0.4608,57218.0,57217.0,0.061173]
[1725514785760,0.001,57218.0,57217.0,1.546293]
[1725514785956,0.1,57233.0,57218.0,0.52432]
[1725514786257,0.06268622,57227.0,57222.0,0.3608]
[1725514786558,0.1,57230.0,57229.0,0.06116]
[1725514788060,0.24,57232.0,57229.0,0.06116]
[1725514788276,0.30268096,57232.0,57229.0,0.06116]
[1725514788556,0.24,57232.0,57229.0,0.06116]
[1725514788948,0.24,57232.0,57230.0,0.0468]
[1725514789154,0.24,57232.0,57230.0,0.0956]
[1725514789655,0.252,57232.0,57230.0,0.0956]
[1725514789861,0.264,57232.0,57230.0,0.0956]
[1725514791363,0.265,57232.0,57231.0,0.061158]
[1725514791562,0.266,57232.0,57231.0,0.061158]
[1725514792362,0.264,57232.0,57231.0,0.061158]
[1725514792757,0.262,57232.0,57231.0,0.061158]
[1725514794258,0.011,57232.0,57231.0,0.061158]
[1725514794458,0.022,57232.0,57231.0,0.061158]
[1725514796955,0.022,57232.0,57231.0,1.185358]
[1725514797761,0.022,57232.0,57231.0,0.585358]
[1725514799461,0.022,57232.0,57231.0,1.185358]
[1725514799660,0.022,57232.0,57231.0,0.585358]
[1725514799862,0.022,57232.0,57231.0,1.185358]
[1725514803164,0.022,57232.0,57231.0,1.546158]
[1725514804767,0.022,57232.0,57231.0,0.946158]
[1725514804969,0.022,57232.0,57231.0,0.421958]
[1725514805365,0.061158,57231.0,57229.0,0.03188358]
[1725514805564,0.022,57232.0,57226.0,0.061163]
[1725514805565,0.301159,57230.0,57226.0,0.061163]
[1725514805762,0.24,57227.0,57226.0,0.061163]
[1725514807358,0.245,57227.0,57226.0,0.061163]
[1725514807759,0.251,57227.0,57226.0,0.061163]
[1725514807969,0.31368143,57227.0,57226.0,0.061163]
[1725514808279,0.31368143,57227.0,57224.0,0.08103267]
[1725514808466,0.251,57227.0,57224.0,0.03213267]
[1725514808771,0.0496,57226.0,57224.0,0.03213267]
[1725514809070,0.061165,57225.0,57224.0,0.00026205]
[1725514809271,0.131165,57225.0,57224.0,0.00026205]
[1725514809775,0.171165,57225.0,57224.0,0.00026205]
[1725514810281,0.174165,57225.0,57224.0,0.00026205]
[1725514811377,0.177165,57225.0,57224.0,0.00026205]
[1725514812080,0.185165,57225.0,57224.0,0.00026205]
[1725514817974,0.285165,57225.0,57224.0,0.00026205]
[1725514818178,0.34785743,57225.0,57224.0,0.00026205]
[1725514819785,0.70865743,57225.0,57224.0,0.00026205]
[1725514820483,0.70865743,57225.0,57217.0,0.061173]
[1725514820484,0.1,57219.0,57217.0,0.061173]
[1725514821582,0.16269243,57219.0,57217.0,0.062173]
[1725514821778,0.16269243,57219.0,57217.0,0.0943552]
[1725514821975,0.24,57218.0,57217.0,0.0943552]
[1725514822785,0.24,57218.0,57217.0,0.0953552]
[1725514823385,0.24,57218.0,57217.0,0.0341822]
[1725514823574,0.30269243,57218.0,57217.0,0.0341822]
[1725514823887,0.30269243,57218.0,57217.0,0.0331822]
[1725514824072,0.30269243,57218.0,57217.0,0.0341822]
[1725514824484,0.36386443,57218.0,57217.0,0.0341822]
[1725514826281,0.36386443,57218.0,57217.0,0.002]
[1725514827973,0.72466443,57218.0,57217.0,0.002]
[1725514829681,0.661972,57218.0,57217.0,0.002]
[1725514829880,0.72467087,57218.0,57217.0,0.002]
[1725514833086,0.72467087,57218.0,57217.0,0.0506]
[1725514835386,0.72467087,57218.0,57217.0,0.002]
[1725514840590,0.66349887,57218.0,57217.0,0.002]
[1725514840802,0.30269887,57218.0,57217.0,0.002]
[1725514840979,0.24,57218.0,57217.0,0.002]
[1725514841792,0.06269887,57219.0,57217.0,0.002]
[1725514841993,0.24,57221.0,57220.0,0.06117]
[1725514843185,0.242,57221.0,57220.0,0.06117]
[1725514843492,0.3046931,57221.0,57220.0,0.06117]
[1725514843696,0.3846931,57221.0,57220.0,0.06117]
[1725514844599,0.3866931,57221.0,57220.0,0.06117]
[1725514851901,0.2466931,57221.0,57220.0,0.06117]
[1725514853305,0.184,57221.0,57220.0,0.06117]
[1725514855813,0.245169,57221.0,57220.0,0.06117]
[1725514856496,0.245169,57221.0,57216.0,0.09325846]
[1725514856697,0.4608,57217.0,57216.0,0.09325846]
[1725514857298,0.4608,57217.0,57216.0,0.03208446]
[1725514857500,0.5234931,57217.0,57213.0,0.061177]
[1725514857800,0.5234931,57217.0,57212.0,0.09786205]
[1725514857801,0.098,57213.0,57212.0,0.09786205]
[1725514858000,0.0626931,57216.0,57214.0,0.061176]
[1725514858208,0.1,57215.0,57214.0,0.061176]
[1725514860108,0.099,57215.0,57214.0,0.062176]
[1725514860812,0.099,57215.0,57214.0,0.064176]
[1725514865107,0.219,57215.0,57214.0,0.064176]
[1725514865813,0.280175,57215.0,57214.0,0.064176]
[1725514866314,0.3428681,57215.0,57214.0,0.064176]
[1725514866504,0.3428681,57215.0,57214.0,0.003]
[1725514871710,0.3428681,57215.0,57214.0,0.001]
[1725514872308,0.3428681,57215.0,57204.0,0.0965]
[1725514872309,0.3428681,57215.0,57201.0,0.06119]
[1725514872515,0.1,57202.0,57201.0,0.06119]
[1725514872719,0.0626931,57203.0,57201.0,0.06119]
[1725514873013,0.0626931,57203.0,57202.0,0.061189]
[1725514873205,0.1626931,57203.0,57202.0,0.061189]
[1725514873404,0.1,57203.0,57202.0,0.061189]
[1725514874321,0.1,57203.0,57202.0,0.421989]
[1725514874923,0.001,57203.0,57202.0,0.521989]
[1725514875414,0.002,57203.0,57202.0,0.521989]
[1725514875619,0.002,57203.0,57202.0,1.646429]
[1725514876516,0.002,57203.0,57202.0,1.046429]
[1725514878823,0.002,57203.0,57202.0,1.67744942]
[1725514879516,0.00026205,57208.0,57202.0,1.67744942]
[1725514879726,0.00026205,57208.0,57207.0,0.521984]
[1725514880023,0.00026205,57208.0,57207.0,1.121984]
[1725514880211,0.00026205,57208.0,57207.0,1.646384]
[1725514881121,0.00126205,57208.0,57207.0,1.646384]
[1725514882223,0.00026205,57208.0,57207.0,1.646384]
[1725514882417,0.00026205,57208.0,57207.0,1.707568]
[1725514882613,0.3608,57223.0,57222.0,0.061168]
[1725514882919,0.3608,57223.0,57222.0,0.161168]
[1725514882920,0.42349307,57223.0,57222.0,0.161168]
[1725514883726,0.06269307,57223.0,57222.0,0.161168]
[1725514883923,0.00026205,57228.0,57225.0,0.061164]
[1725514884222,0.1,57226.0,57225.0,0.060164]
[1725514886020,0.1,57226.0,57221.0,0.0984]
[1725514886021,0.00026205,57228.0,57227.0,0.061162]
[1725514886224,0.10026205,57228.0,57227.0,0.061162]
[1725514887020,0.21659979,57228.0,57227.0,0.061162]
[1725514887424,0.10026205,57228.0,57227.0,0.061162]
[1725514887621,0.00026205,57228.0,57227.0,0.685402]
[1725514887820,0.15390668,57228.0,57227.0,0.161162]
[1725514888126,0.15390668,57228.0,57227.0,0.061162]
[1725514888127,0.16790668,57228.0,57227.0,0.061162]
[1725514888618,0.16590668,57228.0,57227.0,0.061162]
[1725514888825,0.17690668,57228.0,57227.0,0.061162]
[1725514889421,0.17690662,57228.0,57227.0,0.061162]
[1725514891027,0.23459969,57228.0,57227.0,0.062162]
[1725514891231,0.22359969,57228.0,57227.0,0.062162]
[1725514891432,0.23059969,57228.0,57227.0,0.062162]
[1725514891631,0.13059969,57228.0,57227.0,0.162162]
[1725514892533,0.13059969,57228.0,57227.0,0.686402]
[1725514892732,0.13059969,57228.0,57227.0,1.286402]
[1725514893230,0.35629434,57228.0,57227.0,1.286402]
[1725514893625,0.35629434,57228.0,57227.0,0.686402]
[1725514893824,0.34929434,57228.0,57227.0,0.685402]
[1725514894025,0.35229434,57228.0,57227.0,0.685402]
[1725514894230,0.12659969,57228.0,57227.0,0.685402]
[1725514894428,0.06390662,57228.0,57227.0,1.285402]
[1725514894621,0.06390662,57228.0,57227.0,0.685402]
[1725514894824,0.05690662,57228.0,57227.0,1.285402]
[1725514895033,0.05990662,57228.0,57227.0,0.685402]
[1725514895533,0.05590662,57228.0,57227.0,0.685402]
[1725514895828,0.05690662,57228.0,57227.0,0.685402]
[1725514896036,0.05690662,57228.0,57227.0,0.161162]
[1725514897628,0.05690662,57228.0,57227.0,1.285402]
[1725514900623,0.05690662,57228.0,57227.0,0.685402]
[1725514901922,0.05690662,57228.0,57227.0,0.161162]
[1725514906036,0.15690662,57228.0,57227.0,0.061162]
[1725514906231,0.21959969,57228.0,57227.0,0.061162]
[1725514908239,0.44529434,57228.0,57227.0,0.061162]
[1725514908941,0.28260127,57228.0,57227.0,0.061162]
[1725514909129,0.05690662,57228.0,57227.0,0.061162]
[1725514912044,0.00326205,57228.0,57227.0,0.061162]
[1725514913831,0.00326205,57228.0,57227.0,0.421962]
[1725514917138,0.06595512,57228.0,57227.0,0.421962]
[1725514917851,0.06595512,57228.0,57227.0,0.483124]
[1725514918532,0.11959017,57228.0,57227.0,0.483124]
[1725514919844,0.05689671,57228.0,57227.0,0.483124]
[1725514920441,0.05689671,57228.0,57227.0,0.421962]
[1725514920649,0.16595512,57228.0,57227.0,0.061162]
[1725514920942,0.06595512,57228.0,57227.0,0.061162]
[1725514923137,0.16595512,57228.0,57227.0,0.061162]
[1725514924046,0.10326205,57228.0,57227.0,0.061162]
[1725514925745,0.00326205,57228.0,57227.0,0.061162]
[1725514928053,0.00326205,57228.0,57227.0,0.161162]
[1725514930351,0.10326205,57228.0,57227.0,0.061162]
[1725514933055,0.00326205,57228.0,57227.0,0.061162]
[1725514935044,0.05690553,57228.0,57227.0,0.061162]
[1725514936758,0.28333807,57228.0,57227.0,0.061162]
[1725514937148,0.05690553,57228.0,57227.0,0.061162]
[1725514937456,0.05690553,57228.0,57225.0,0.03217227]
[1725514937457,0.061164,57226.0,57225.0,0.03217227]
[1725514937647,0.061168,57222.0,57220.0,0.061169]
[1725514937847,0.15364348,57221.0,57220.0,0.061169]
[1725514938450,0.51445226,57221.0,57220.0,0.061169]
[1725514938644,0.57714533,57221.0,57220.0,0.061169]
[1725514938851,0.57714533,57221.0,57220.0,0.065169]
[1725514939453,0.57914533,57221.0,57220.0,0.071169]
[1725514940157,0.57814533,57221.0,57220.0,0.065169]
[1725514940354,0.63931433,57221.0,57220.0,0.009]
[1725514940546,0.68521433,57221.0,57220.0,0.009]
[1725514941054,0.63156207,57221.0,57220.0,0.009]
[1725514943465,0.68521373,57221.0,57220.0,0.009]
[1725514946360,0.63156207,57221.0,57220.0,0.009]
[1725514946561,0.68521475,57221.0,57220.0,0.009]
[1725514946861,0.63156207,57221.0,57220.0,0.009]
[1725514947251,0.68521448,57221.0,57220.0,0.009]
[1725514947449,0.63156207,57221.0,57220.0,0.009]
[1725514947861,0.68521368,57221.0,57220.0,0.009]
[1725514948064,0.67156207,57221.0,57220.0,0.009]
[1725514954773,0.62566207,57221.0,57220.0,0.009]
[1725514954969,0.20369307,57221.0,57220.0,0.009]
[1725514955270,0.041,57221.0,57220.0,0.17017]
[1725514956375,0.041,57221.0,57220.0,0.07017]
[1725514957768,0.102169,57221.0,57220.0,0.07017]
[1725514962181,0.21851393,57221.0,57220.0,0.07017]
[1725514963474,0.15734493,57221.0,57220.0,0.07017]
[1725514964880,0.09465186,57221.0,57220.0,0.07017]
[1725514968273,0.20142086,57221.0,57220.0,0.009]
[1725514968464,0.26411393,57221.0,57220.0,0.009]
[1725514969071,0.20142252,57221.0,57220.0,0.009]
[1725514971078,0.15582252,57221.0,57220.0,0.009]
[1725514977477,0.51662252,57221.0,57220.0,0.009]
[1725514977678,0.57931636,57221.0,57220.0,0.009]
[1725514980583,0.47814736,57221.0,57220.0,0.07017]
[1725514980879,0.11734736,57221.0,57220.0,1.05035]
[1725514981085,0.05465349,57221.0,57220.0,1.05035]
[1725514982173,0.03559561,57221.0,57220.0,1.11152]
[1725514982377,0.22634517,57227.0,57226.0,0.061164]
[1725514982577,0.22634517,57227.0,57226.0,0.161164]
[1725514982780,0.22634517,57227.0,57226.0,0.685404]
[1725514982979,0.00026205,57228.0,57227.0,0.061162]
[1725514985188,0.00426205,57228.0,57227.0,0.061162]
[1725514985384,0.00626205,57228.0,57227.0,0.061162]
[1725514985793,0.00626205,57228.0,57227.0,0.09253871]
[1725514987290,0.05989802,57228.0,57227.0,0.09253871]
[1725514988994,0.05989802,57228.0,57227.0,0.45333871]
[1725514989679,0.05989802,57228.0,57227.0,0.09253871]
[1725514989889,0.05989802,57228.0,57227.0,0.45333871]
[1725514992289,0.12258028,57228.0,57227.0,0.45333871]
[1725514992691,0.12258151,57228.0,57227.0,0.09253871]
[1725514992886,0.12258151,57228.0,57227.0,0.45333871]
[1725514993887,0.05989925,57228.0,57227.0,0.45333871]
[1725514997801,0.05989925,57228.0,57227.0,0.09253871]
[1725514998005,0.05989925,57228.0,57227.0,0.45333871]
[1725514998919,0.05989925,57228.0,57227.0,0.09253871]
[1725514999120,0.05989925,57228.0,57227.0,0.45333871]
[1725514999321,0.00626205,57228.0,57227.0,0.45333871]
[1725515000219,0.00626205,57228.0,57227.0,0.51450071]
[1725515000418,0.06267438,57239.0,57236.0,0.1]
[1725515000627,0.06267438,57239.0,57238.0,0.161151]
[1725515000823,0.06267438,57239.0,57238.0,0.521951]
[1725515000824,0.05363638,57239.0,57238.0,0.521951]
[1725515001119,0.05363262,57239.0,57238.0,0.521951]
[1725515001515,0.06763262,57239.0,57238.0,0.521951]
[1725515001911,0.08063262,57239.0,57238.0,0.521951]
[1725515002621,0.08163262,57239.0,57238.0,0.522951]
[1725515003322,0.08163262,57239.0,57238.0,0.523951]